fUST/lending_fUST_20250515
["ID","MTS","AMOUNT","RATE_DAILY","PERIOD"]
[361126937,1747291847428,-151.0,0.00023521,7]
[361126938,1747291847437,-151.0,0.00023521,7]
[361126939,1747291847447,-151.0,0.000236,7]
[361126940,1747291847457,-589.27,0.000236,7]
[361126941,1747291847466,-500.0,0.00023614,9]
[361126942,1747291847475,-2000.0,0.00023616,2]
[361126943,1747291847485,-156.703245,0.0002375,9]
[361126944,1747291847495,-151.0,0.000238,9]
[361126945,1747291847504,-151.0,0.000238,8]
[361126946,1747291847513,-889.90124767,0.000239,2]
[361126947,1747291847522,-438.57062243,0.000239,2]
[361126948,1747291847530,-4347.89559762,0.00023934,10]
[361126949,1747291847539,-392.41679992,0.00023973,2]
[361126950,1747291847548,-413.93120955,0.00023973,2]
[361126951,1747291847557,-502.6850488,0.00023973,2]
[361126952,1747291847567,-151.0,0.00023999,7]
[361126953,1747291847576,-6477.70117977,0.00024,2]
[361126954,1747291847586,-1312080.73567853,0.00024,2]
[361126955,1747291847595,-303.245136,0.00024,2]
[361126956,1747291847604,-303.245136,0.00024,2]
[361126957,1747291847613,-151.0,0.00024,7]
[361126958,1747291847622,-151.0,0.00024,7]
[361126959,1747291847632,-259.077025,0.00024,7]
[361126960,1747291847641,-152.904606,0.00024,7]
[361126961,1747291847650,-151.0,0.00024,7]
[361126962,1747291847660,-324.888616,0.00024,7]
[361126963,1747291847670,-324.888616,0.00024,7]
[361126964,1747291847679,-686.321293,0.00024,7]
[361126965,1747291847688,-686.321293,0.00024,7]
[361126966,1747291847702,-151.0,0.00024,7]
[361126967,1747291847711,-151.0,0.00024,7]
[361126968,1747291847721,-151.411389,0.00024,7]
[361126969,1747291847730,-151.0,0.00024,7]
[361126970,1747291847739,-151.0,0.00024,7]
[361126971,1747291847750,-485.142084,0.00024,7]
[361126972,1747291847759,-485.142084,0.00024,7]
[361126973,1747291847769,-154.897987,0.00024,7]
[361126974,1747291847779,-151.0,0.00024,7]
[361126975,1747291847788,-357.589498,0.00024,7]
[361126976,1747291847797,-357.589498,0.00024,7]
[361126977,1747291847807,-151.0,0.00024,7]
[361126978,1747291847816,-196.648878,0.00024,2]
[361126979,1747291847825,-196.648878,0.00024,2]
[361126980,1747291847834,-151.0,0.00024,7]
[361126981,1747291847844,-223.410133,0.00024,7]
[361126982,1747291847854,-223.410133,0.00024,7]
[361126983,1747291847863,-151.0,0.00024,7]
[361126984,1747291847873,-702.71592744,0.00024164,2]
[361126985,1747291847882,-4347.89559762,0.00024348,11]
[361126986,1747291847891,-1618.038984,0.000245,2]
[361126987,1747291847901,-9505.27036362,0.00024557,2]
[361126988,1747291847910,-4206.62,0.000246,15]
[361126989,1747291847919,-1152.0,0.00024606,2]
[361126990,1747291847928,-450.0,0.00024657,2]
[361126991,1747291847938,-400.0,0.00024657,2]
[361126992,1747291847947,-450.0,0.00024657,2]
[361126993,1747291847956,-450.0,0.00024657,2]
[361126994,1747291847965,-446.28663303,0.00024657,2]
[361126995,1747291847975,-400.0,0.00024657,2]
[361126996,1747291847984,-450.0,0.00024657,2]
[361126997,1747291847993,-450.0,0.00024657,2]
[361126998,1747291848003,-450.0,0.00024657,2]
[361126999,1747291848012,-450.0,0.00024657,2]
[361127000,1747291848022,-450.0,0.00024657,2]
[361127001,1747291848031,-450.0,0.00024657,2]
[361127002,1747291848041,-500.0,0.00024657,2]
[361127003,1747291848050,-450.0,0.00024657,2]
[361127004,1747291848060,-450.0,0.00024657,2]
[361127005,1747291848069,-450.0,0.00024657,2]
[361127006,1747291848079,-450.0,0.00024657,2]
[361127007,1747291848089,-450.0,0.00024657,2]
[361127008,1747291848098,-402.91643551,0.00024657,2]
[361127009,1747291848107,-450.0,0.00024657,2]
[361127010,1747291848117,-450.0,0.00024657,2]
[361127011,1747291848126,-450.0,0.00024657,2]
[361127012,1747291848135,-450.0,0.00024657,2]
[361127013,1747291848145,-450.0,0.00024657,2]
[361127014,1747291848154,-450.0,0.00024657,2]
[361127015,1747291848164,-450.0,0.00024657,2]
[361127016,1747291848173,-303.245136,0.00024657,2]
[361127017,1747291848183,-450.0,0.00024657,2]
[361127018,1747291848192,-303.245136,0.00024657,2]
[361127019,1747291848202,-450.0,0.00024657,2]
[361127020,1747291848211,-450.0,0.00024657,2]
[361127021,1747291848220,-450.0,0.00024657,2]
[361127022,1747291848230,-450.0,0.00024657,2]
[361127023,1747291848240,-450.0,0.00024657,2]
[361127024,1747291848249,-450.0,0.00024657,2]
[361127025,1747291848259,-502.47863682,0.00024657,2]
[361127026,1747291848268,-450.0,0.00024657,2]
[361127027,1747291848278,-284.00717,0.00024657,7]
[361127028,1747291848287,-450.0,0.00024657,2]
[361127029,1747291848297,-450.0,0.00024657,2]
[361127030,1747291848306,-450.0,0.00024657,2]
[361127031,1747291848316,-450.0,0.00024657,2]
[361127032,1747291848325,-450.0,0.00024657,2]
[361127033,1747291848335,-403.90594273,0.00024657,2]
[361127034,1747291848344,-450.0,0.00024657,2]
[361127035,1747291848354,-450.0,0.00024657,2]
[361127036,1747291848364,-450.0,0.00024657,2]
[361127037,1747291848373,-450.0,0.00024657,2]
[361127038,1747291848383,-450.0,0.00024657,2]
[361127039,1747291848393,-450.0,0.00024657,2]
[361127040,1747291848402,-576.73581149,0.00024657,2]
[361127041,1747291848412,-450.0,0.00024657,2]
[361127042,1747291848422,-450.0,0.00024657,2]
[361127043,1747291848431,-450.0,0.00024657,2]
[361127044,1747291848440,-450.0,0.00024657,2]
[361127045,1747291848450,-450.0,0.00024657,2]
[361127046,1747291848460,-450.0,0.00024657,2]
[361127047,1747291848469,-403.60744697,0.00024657,2]
[361127048,1747291848479,-450.0,0.00024657,2]
[361127049,1747291848489,-450.0,0.00024657,2]
[361127050,1747291848498,-450.0,0.00024657,2]
[361127051,1747291848627,-450.0,0.00024657,2]
[361127052,1747291848637,-450.0,0.00024657,2]
[361127053,1747291848647,-450.0,0.00024657,2]
[361127054,1747291848656,-450.0,0.00024657,2]
[361127055,1747291848666,-382.12770222,0.00024657,2]
[361127056,1747291848676,-450.0,0.00024657,2]
[361127057,1747291848685,-400.64241899,0.00024657,2]
[361127058,1747291848694,-450.0,0.00024657,2]
[361127059,1747291848707,-450.0,0.00024657,2]
[361127060,1747291848717,-450.0,0.00024657,2]
[361127061,1747291848726,-500.0,0.00024657,2]
[361127062,1747291848735,-500.0,0.00024657,2]
[361127063,1747291848745,-513.51075829,0.00024657,2]
[361127064,1747291848754,-450.0,0.00024657,2]
[361127065,1747291848763,-450.0,0.00024657,2]
[361127066,1747291848773,-450.0,0.00024657,2]
[361127067,1747291848782,-573.90453187,0.00024657,2]
[361127068,1747291848792,-327.42765405,0.00024657,2]
[361127069,1747291848801,-450.0,0.00024657,2]
[361127070,1747291848810,-450.0,0.00024657,2]
[361127071,1747291848819,-450.0,0.00024657,2]
[361127072,1747291848828,-450.0,0.00024657,2]
[361127073,1747291848837,-450.0,0.00024657,2]
[361127074,1747291848846,-488.37769554,0.00024657,2]
[361127075,1747291848856,-450.0,0.00024657,2]
[361127076,1747291848865,-474.54454497,0.00024657,2]
[361127077,1747291848875,-450.0,0.00024657,2]
[361127078,1747291848884,-450.0,0.00024657,2]
[361127079,1747291848893,-450.0,0.00024657,2]
[361127080,1747291848903,-421.00608139,0.00024657,2]
[361127081,1747291848912,-403.30556391,0.00024657,2]
[361127082,1747291848921,-450.0,0.00024657,2]
[361127083,1747291848931,-403.04494381,0.00024657,2]
[361127084,1747291848940,-450.0,0.00024657,2]
[361127085,1747291848950,-488.98912428,0.00024657,2]
[361127086,1747291848959,-450.0,0.00024657,2]
[361127087,1747291848968,-402.4125288,0.00024657,2]
[361127088,1747291848978,-450.0,0.00024657,2]
[361127089,1747291848987,-450.0,0.00024657,2]
[361127090,1747291848996,-450.0,0.00024657,2]
[361127091,1747291849006,-329.05066669,0.00024657,2]
[361127092,1747291849015,-400.73261571,0.00024657,2]
[361127093,1747291849025,-450.0,0.00024657,2]
[361127094,1747291849035,-402.18142468,0.00024657,2]
[361127095,1747291849044,-450.0,0.00024657,2]
[361127096,1747291849054,-407.06728176,0.00024657,2]
[361127097,1747291849063,-450.0,0.00024657,2]
[361127098,1747291849073,-450.0,0.00024657,2]
[361127099,1747291849082,-450.0,0.00024657,2]
[361127100,1747291849091,-450.0,0.00024657,2]
[361127101,1747291849102,-400.95449768,0.00024657,2]
[361127102,1747291849111,-506.16981647,0.00024657,2]
[361127103,1747291849120,-450.0,0.00024657,2]
[361127104,1747291849130,-450.0,0.00024657,2]
[361127105,1747291849139,-450.0,0.00024657,2]
[361127106,1747291849149,-450.0,0.00024657,2]
[361127107,1747291849158,-450.0,0.00024657,2]
[361127108,1747291849167,-450.0,0.00024657,2]
[361127109,1747291849176,-450.0,0.00024657,2]
[361127110,1747291849185,-450.0,0.00024657,2]
[361127111,1747291849195,-450.0,0.00024657,2]
[361127112,1747291849204,-450.0,0.00024657,2]
[361127113,1747291849213,-450.0,0.00024657,2]
[361127114,1747291849223,-450.0,0.00024657,2]
[361127115,1747291849232,-450.0,0.00024657,2]
[361127116,1747291849241,-450.0,0.00024657,2]
[361127117,1747291849251,-450.0,0.00024657,2]
[361127118,1747291849260,-450.0,0.00024657,2]
[361127119,1747291849270,-450.0,0.00024657,2]
[361127120,1747291849279,-450.0,0.00024657,2]
[361127121,1747291849289,-450.0,0.00024657,2]
[361127122,1747291849299,-450.0,0.00024657,2]
[361127123,1747291849308,-450.0,0.00024657,2]
[361127124,1747291849318,-450.0,0.00024657,2]
[361127125,1747291849327,-404.58138656,0.00024657,2]
[361127126,1747291849336,-450.0,0.00024657,2]
[361127127,1747291849346,-450.0,0.00024657,2]
[361127128,1747291849356,-450.0,0.00024657,2]
[361127129,1747291849365,-450.0,0.00024657,2]
[361127130,1747291849375,-450.0,0.00024657,2]
[361127131,1747291849384,-450.0,0.00024657,2]
[361127132,1747291849394,-403.90569631,0.00024657,2]
[361127133,1747291849405,-581.19450872,0.00024657,2]
[361127134,1747291849415,-400.23931876,0.00024657,2]
[361127135,1747291849424,-1000.0,0.00024657,2]
[361127136,1747291849434,-450.0,0.00024657,2]
[361127137,1747291849443,-450.0,0.00024657,2]
[361127138,1747291849453,-450.0,0.00024657,2]
[361127139,1747291849462,-403.28886557,0.00024657,2]
[361127140,1747291849472,-450.0,0.00024657,2]
[361127141,1747291849481,-450.0,0.00024657,2]
[361127142,1747291849491,-450.0,0.00024657,2]
[361127143,1747291849501,-450.0,0.00024657,2]
[361127144,1747291849510,-450.0,0.00024657,2]
[361127145,1747291849520,-307.28482399,0.00024657,2]
[361127146,1747291849529,-450.0,0.00024657,2]
[361127147,1747291849539,-450.0,0.00024657,2]
[361127148,1747291849548,-406.71078433,0.00024657,2]
[361127149,1747291849557,-450.0,0.00024657,2]
[361127150,1747291849567,-450.0,0.00024657,2]
[361127151,1747291849576,-407.2847538,0.00024657,2]
[361127152,1747291849586,-450.0,0.00024657,2]
[361127153,1747291849596,-405.3937239,0.00024657,2]
[361127154,1747291849606,-450.0,0.00024657,2]
[361127155,1747291849615,-450.0,0.00024657,2]
[361127156,1747291849626,-450.0,0.00024657,2]
[361127157,1747291849636,-450.0,0.00024657,2]
[361127158,1747291849648,-343.08147514,0.00024657,2]
[361127159,1747291849659,-450.0,0.00024657,2]
[361127160,1747291849669,-450.0,0.00024657,2]
[361127161,1747291849678,-450.0,0.00024657,2]
[361127162,1747291849689,-450.0,0.00024657,2]
[361127163,1747291849702,-450.0,0.00024657,2]
[361127164,1747291849711,-450.0,0.00024657,2]
[361127165,1747291849721,-450.0,0.00024657,2]
[361127166,1747291849731,-405.29281987,0.00024657,2]
[361127167,1747291849742,-450.0,0.00024657,2]
[361127168,1747291849752,-402.00609856,0.00024657,2]
[361127169,1747291849761,-450.0,0.00024657,2]
[361127170,1747291849773,-450.0,0.00024657,2]
[361127171,1747291849782,-151.0,0.00024657,7]
[361127172,1747291849791,-400.5651922,0.00024657,2]
[361127173,1747291849801,-450.0,0.00024657,2]
[361127174,1747291849811,-450.0,0.00024657,2]
[361127175,1747291849821,-400.65849172,0.00024657,2]
[361127176,1747291849831,-403.37145403,0.00024657,2]
[361127177,1747291849840,-450.0,0.00024657,2]
[361127178,1747291849850,-450.0,0.00024657,2]
[361127179,1747291849859,-450.0,0.00024657,2]
[361127180,1747291849869,-400.19594306,0.00024657,2]
[361127181,1747291849880,-450.0,0.00024657,2]
[361127182,1747291849889,-400.84757874,0.00024657,2]
[361127183,1747291849899,-450.0,0.00024657,2]
[361127184,1747291849908,-450.0,0.00024657,2]
[361127185,1747291849918,-450.0,0.00024657,2]
[361127186,1747291849927,-450.0,0.00024657,2]
[361127187,1747291849937,-450.0,0.00024657,2]
[361127188,1747291849947,-400.68142523,0.00024657,2]
[361127189,1747291849955,-450.0,0.00024657,2]
[361127190,1747291849965,-450.0,0.00024657,2]
[361127191,1747291849974,-450.0,0.00024657,2]
[361127192,1747291849983,-450.0,0.00024657,2]
[361127193,1747291849993,-450.0,0.00024657,2]
[361127194,1747291850002,-450.0,0.00024657,2]
[361127195,1747291850012,-401.08168652,0.00024657,2]
[361127196,1747291850021,-450.0,0.00024657,2]
[361127197,1747291850031,-405.87993981,0.00024657,2]
[361127198,1747291850040,-450.0,0.00024657,2]
[361127199,1747291850050,-450.0,0.00024657,2]
[361127200,1747291850059,-401.96999432,0.00024657,2]
[361127201,1747291850070,-450.0,0.00024657,2]
[361127202,1747291850080,-450.0,0.00024657,2]
[361127203,1747291850089,-400.0,0.00024657,2]
[361127204,1747291850098,-401.58085685,0.00024657,2]
[361127205,1747291850107,-402.11590032,0.00024657,2]
[361127206,1747291850117,-530.06327976,0.00024657,2]
[361127207,1747291850127,-450.0,0.00024657,2]
[361127208,1747291850136,-519.34525243,0.00024657,2]
[361127209,1747291850145,-450.0,0.00024657,2]
[361127210,1747291850155,-450.0,0.00024657,2]
[361127211,1747291850164,-401.44848117,0.00024657,2]
[361127212,1747291850173,-450.0,0.00024657,2]
[361127213,1747291850183,-477.40584988,0.00024657,2]
[361127214,1747291850192,-407.74949268,0.00024657,2]
[361127215,1747291850201,-450.0,0.00024657,2]
[361127216,1747291850211,-450.0,0.00024657,2]
[361127217,1747291850221,-402.00372499,0.00024657,2]
[361127218,1747291850231,-450.0,0.00024657,2]
[361127219,1747291850241,-403.43261451,0.00024657,2]
[361127220,1747291850251,-450.0,0.00024657,2]
[361127221,1747291850261,-450.0,0.00024657,2]
[361127222,1747291850271,-1759.34,0.00024657,2]
[361127223,1747291850281,-1759.34,0.00024657,2]
[361127224,1747291850291,-1759.34,0.00024657,2]
[361127225,1747291850301,-1759.34,0.00024657,2]
[361127226,1747291850311,-1759.34,0.00024657,2]
[361127227,1747291850320,-1759.34,0.00024657,2]
[361127228,1747291850330,-1759.34,0.00024657,2]
[361127229,1747291850343,-1759.34,0.00024657,2]
[361127230,1747291850353,-1759.34,0.00024657,2]
[361127231,1747291850363,-450.0,0.00024657,2]
[361127232,1747291850372,-1759.34,0.00024657,2]
[361127233,1747291850382,-450.0,0.00024657,2]
[361127234,1747291850392,-1759.34,0.00024657,2]
[361127235,1747291850401,-1759.34,0.00024657,2]
[361127236,1747291850411,-1759.34,0.00024657,2]
[361127237,1747291850421,-1759.34,0.00024657,2]
[361127238,1747291850431,-1759.34,0.00024657,2]
[361127239,1747291850440,-1759.34,0.00024657,2]
[361127240,1747291850451,-1759.34,0.00024657,2]
[361127241,1747291850461,-450.0,0.00024657,2]
[361127242,1747291850471,-1759.34,0.00024657,2]
[361127243,1747291850480,-1759.34,0.00024657,2]
[361127244,1747291850490,-1759.34,0.00024657,2]
[361127245,1747291850500,-1759.34,0.00024657,2]
[361127246,1747291850510,-1759.34,0.00024657,2]
[361127247,1747291850520,-403.16081875,0.00024657,2]
[361127248,1747291850530,-1759.34,0.00024657,2]
[361127249,1747291850539,-1759.43069739,0.00024657,2]
[361127250,1747291850549,-450.0,0.00024657,2]
[361127251,1747291850559,-450.0,0.00024657,2]
[361127252,1747291850568,-450.0,0.00024657,2]
[361127253,1747291850578,-401.13021759,0.00024657,2]
[361127254,1747291850587,-472.16496626,0.00024657,2]
[361127255,1747291850597,-400.83568197,0.00024657,2]
[361127256,1747291850607,-450.0,0.00024657,2]
[361127257,1747291850617,-450.0,0.00024657,2]
[361127258,1747291850626,-450.0,0.00024657,2]
[361127259,1747291850635,-450.0,0.00024657,2]
[361127260,1747291850645,-450.0,0.00024657,2]
[361127261,1747291850655,-450.0,0.00024657,2]
[361127262,1747291850664,-152.499774,0.00024657,7]
[361127263,1747291850674,-461.93181415,0.00024657,2]
[361127264,1747291850684,-450.0,0.00024657,2]
[361127265,1747291850693,-450.0,0.00024657,2]
[361127266,1747291850706,-450.0,0.00024657,2]
[361127267,1747291850716,-406.90013572,0.00024657,2]
[361127268,1747291850726,-450.0,0.00024657,2]
[361127269,1747291850735,-450.0,0.00024657,2]
[361127270,1747291850745,-508.29,0.00024657,2]
[361127271,1747291850755,-450.0,0.00024657,2]
[361127272,1747291850765,-400.57506642,0.00024657,2]
[361127273,1747291850774,-450.0,0.00024657,2]
[361127274,1747291850784,-450.0,0.00024657,2]
[361127275,1747291850794,-402.09790933,0.00024657,2]
[361127276,1747291850803,-450.0,0.00024657,2]
[361127277,1747291850813,-450.0,0.00024657,2]
[361127278,1747291850822,-401.42132255,0.00024657,2]
[361127279,1747291850832,-544.70082774,0.00024657,2]
[361127280,1747291850841,-404.64722047,0.00024657,2]
[361127281,1747291850851,-512.71649638,0.00024657,2]
[361127282,1747291850860,-324.888616,0.00024657,7]
[361127283,1747291850869,-450.0,0.00024657,2]
[361127284,1747291850879,-450.0,0.00024657,2]
[361127285,1747291850888,-410.67628353,0.00024657,2]
[361127286,1747291850897,-403.6660509,0.00024657,2]
[361127287,1747291850907,-401.02318655,0.00024657,2]
[361127288,1747291850916,-450.0,0.00024657,2]
[361127289,1747291850926,-450.0,0.00024657,2]
[361127290,1747291850935,-324.888616,0.00024657,7]
[361127291,1747291850945,-450.0,0.00024657,2]
[361127292,1747291850956,-257.30267594,0.00024657,2]
[361127293,1747291850967,-404.00474577,0.00024657,2]
[361127294,1747291850977,-450.0,0.00024657,2]
[361127295,1747291850986,-411.18144406,0.00024657,2]
[361127296,1747291850998,-400.14227726,0.00024657,2]
[361127297,1747291851008,-521.42349721,0.00024657,2]
[361127298,1747291851017,-404.57689726,0.00024657,2]
[361127299,1747291851026,-551.7793464,0.00024657,2]
[361127300,1747291851036,-402.38359032,0.00024657,2]
[361127301,1747291851045,-406.10741768,0.00024657,2]
[361127302,1747291851054,-450.0,0.00024657,2]
[361127303,1747291851064,-450.0,0.00024657,2]
[361127304,1747291851074,-450.0,0.00024657,2]
[361127305,1747291851083,-404.43028542,0.00024657,2]
[361127306,1747291851095,-450.0,0.00024657,2]
[361127307,1747291851105,-400.18144635,0.00024657,2]
[361127308,1747291851115,-450.0,0.00024657,2]
[361127309,1747291851125,-450.0,0.00024657,2]
[361127310,1747291851136,-450.0,0.00024657,2]
[361127311,1747291851146,-450.0,0.00024657,2]
[361127312,1747291851155,-450.0,0.00024657,2]
[361127313,1747291851165,-450.0,0.00024657,2]
[361127314,1747291851176,-406.14367649,0.00024657,2]
[361127315,1747291851186,-450.0,0.00024657,2]
[361127316,1747291851196,-403.84699663,0.00024657,2]
[361127317,1747291851206,-686.321293,0.00024657,7]
[361127318,1747291851216,-450.0,0.00024657,2]
[361127319,1747291851226,-450.0,0.00024657,2]
[361127320,1747291851236,-450.0,0.00024657,2]
[361127321,1747291851246,-450.0,0.00024657,2]
[361127322,1747291851256,-450.0,0.00024657,2]
[361127323,1747291851266,-450.0,0.00024657,2]
[361127324,1747291851275,-400.18773189,0.00024657,2]
[361127325,1747291851285,-450.0,0.00024657,2]
[361127326,1747291851295,-450.0,0.00024657,2]
[361127327,1747291851305,-686.321293,0.00024657,7]
[361127328,1747291851314,-450.0,0.00024657,2]
[361127329,1747291851324,-450.0,0.00024657,2]
[361127330,1747291851334,-401.75445303,0.00024657,2]
[361127331,1747291851343,-450.0,0.00024657,2]
[361127332,1747291851354,-450.0,0.00024657,2]
[361127333,1747291851363,-151.0,0.00024657,7]
[361127334,1747291851373,-450.0,0.00024657,2]
[361127335,1747291851383,-450.0,0.00024657,2]
[361127336,1747291851393,-450.0,0.00024657,2]
[361127337,1747291851402,-450.0,0.00024657,2]
[361127338,1747291851412,-450.0,0.00024657,2]
[361127339,1747291851422,-450.0,0.00024657,2]
[361127340,1747291851432,-291.394928,0.00024657,7]
[361127341,1747291851442,-450.0,0.00024657,2]
[361127342,1747291851583,-450.0,0.00024657,2]
[361127343,1747291851593,-450.0,0.00024657,2]
[361127344,1747291851603,-450.0,0.00024657,2]
[361127345,1747291851612,-450.0,0.00024657,2]
[361127346,1747291851622,-450.0,0.00024657,2]
[361127347,1747291851632,-403.93995056,0.00024657,2]
[361127348,1747291851641,-450.0,0.00024657,2]
[361127349,1747291851651,-485.142084,0.00024657,7]
[361127350,1747291851660,-485.142084,0.00024657,7]
[361127351,1747291851670,-450.0,0.00024657,2]
[361127352,1747291851680,-402.37498567,0.00024657,2]
[361127353,1747291851690,-450.0,0.00024657,2]
[361127354,1747291851702,-400.52448619,0.00024657,2]
[361127355,1747291851712,-450.0,0.00024657,2]
[361127356,1747291851723,-485.142084,0.00024657,7]
[361127357,1747291851731,-485.142084,0.00024657,7]
[361127358,1747291851741,-450.0,0.00024657,2]
[361127359,1747291851751,-400.92719641,0.00024657,2]
[361127360,1747291851760,-450.0,0.00024657,2]
[361127361,1747291851770,-400.0,0.00024657,2]
[361127362,1747291851780,-450.0,0.00024657,2]
[361127363,1747291851789,-402.45328149,0.00024657,2]
[361127364,1747291851799,-200.08838688,0.00024657,2]
[361127365,1747291851809,-1194.37,0.00024657,2]
[361127366,1747291851819,-1194.37,0.00024657,2]
[361127367,1747291851828,-1194.37,0.00024657,2]
[361127368,1747291851838,-1194.37,0.00024657,2]
[361127369,1747291851847,-1194.37,0.00024657,2]
[361127370,1747291851856,-1194.37,0.00024657,2]
[361127371,1747291851866,-1194.37,0.00024657,2]
[361127372,1747291851876,-1194.37,0.00024657,2]
[361127373,1747291851885,-450.0,0.00024657,2]
[361127374,1747291851894,-1194.37,0.00024657,2]
[361127375,1747291851903,-450.0,0.00024657,2]
[361127376,1747291851912,-1194.37,0.00024657,2]
[361127377,1747291851921,-1194.37,0.00024657,2]
[361127378,1747291851931,-1194.37,0.00024657,2]
[361127379,1747291851940,-450.0,0.00024657,2]
[361127380,1747291851950,-1194.37,0.00024657,2]
[361127381,1747291851959,-1194.37,0.00024657,2]
[361127382,1747291851968,-1194.37,0.00024657,2]
[361127383,1747291851978,-1194.37,0.00024657,2]
[361127384,1747291851987,-1194.37,0.00024657,2]
[361127385,1747291851996,-1194.37,0.00024657,2]
[361127386,1747291852006,-1194.37,0.00024657,2]
[361127387,1747291852015,-1194.37,0.00024657,2]
[361127388,1747291852024,-1194.37,0.00024657,2]
[361127389,1747291852033,-450.0,0.00024657,2]
[361127390,1747291852043,-450.0,0.00024657,2]
[361127391,1747291852052,-1194.37,0.00024657,2]
[361127392,1747291852062,-1194.37,0.00024657,2]
[361127393,1747291852071,-1194.51243385,0.00024657,2]
[361127394,1747291852080,-450.0,0.00024657,2]
[361127395,1747291852089,-320.20857139,0.00024657,2]
[361127396,1747291852099,-450.0,0.00024657,2]
[361127397,1747291852110,-450.0,0.00024657,2]
[361127398,1747291852119,-401.10725529,0.00024657,2]
[361127399,1747291852129,-450.0,0.00024657,2]
[361127400,1747291852138,-450.0,0.00024657,2]
[361127401,1747291852147,-398.72327715,0.00024657,2]
[361127402,1747291852156,-420.34127567,0.00024657,2]
[361127403,1747291852165,-171.438411,0.00024657,7]
[361127404,1747291852174,-357.589498,0.00024657,7]
[361127405,1747291852183,-357.589498,0.00024657,7]
[361127406,1747291852193,-357.589498,0.00024657,7]
[361127407,1747291852202,-466.4456149,0.00024657,2]
[361127408,1747291852211,-357.589498,0.00024657,7]
[361127409,1747291852221,-400.89928046,0.00024657,2]
[361127410,1747291852231,-357.589498,0.00024657,7]
[361127411,1747291852241,-151.0,0.00024657,7]
[361127412,1747291852251,-357.589498,0.00024657,7]
[361127413,1747291852260,-151.0,0.00024657,7]
[361127414,1747291852270,-357.589498,0.00024657,7]
[361127415,1747291852280,-151.0,0.00024657,7]
[361127416,1747291852290,-450.0,0.00024657,2]
[361127417,1747291852299,-357.589498,0.00024657,7]
[361127418,1747291852309,-151.0,0.00024657,7]
[361127419,1747291852319,-442.32117808,0.00024657,2]
[361127420,1747291852328,-151.0,0.00024657,7]
[361127421,1747291852338,-400.97609521,0.00024657,2]
[361127422,1747291852348,-450.0,0.00024657,2]
[361127423,1747291852358,-403.36212656,0.00024657,2]
[361127424,1747291852367,-450.0,0.00024657,2]
[361127425,1747291852377,-401.48875926,0.00024657,2]
[361127426,1747291852386,-450.0,0.00024657,2]
[361127427,1747291852396,-450.0,0.00024657,2]
[361127428,1747291852405,-450.0,0.00024657,2]
[361127429,1747291852416,-500.0,0.00024657,2]
[361127430,1747291852425,-500.0,0.00024657,2]
[361127431,1747291852436,-500.0,0.00024657,2]
[361127432,1747291852446,-500.0,0.00024657,2]
[361127433,1747291852456,-500.0,0.00024657,2]
[361127434,1747291852466,-339.27973755,0.00024657,2]
[361127435,1747291852476,-450.0,0.00024657,2]
[361127436,1747291852486,-450.0,0.00024657,2]